[Event "Titled Tuesday Blitz May 9 Early 2023"]
[White "Namitbir Singh Walia"]
[Black "Fernandez Siles, Luis"]
[WhiteFideId "35071068"]
[BlackFideId "2209420"]
[WhiteElo "2239"]
[BlackElo "2195"]
[Result "1-0"]
[Round "05"]
[TimeControl "180+2"]
[Date "2023.05.09"]
[WhiteClock "0:00:08"]
[BlackClock "0:00:00"]

1. e4 {[%clk 0:03:00]}  c5 {[%clk 0:02:59]} 2. Nf3 {[%clk 0:03:00]}  Nc6 {[%clk 0:02:59]} 3. d4 {[%clk 0:03:01]}  cxd4 {[%clk 0:03:00]} 4. Nxd4 {[%clk 0:03:01]}  Nf6 {[%clk 0:03:01]} 5. Nc3 {[%clk 0:03:01]}  e5 {[%clk 0:03:02]} 6. Ndb5 {[%clk 0:03:01]}  d6 {[%clk 0:03:02]} 7. Bg5 {[%clk 0:03:00]}  a6 {[%clk 0:03:03]} 8. Na3 {[%clk 0:03:00]}  b5 {[%clk 0:03:04]} 9. Nd5 {[%clk 0:03:01]}  Be7 {[%clk 0:03:04]} 10. Bxf6 {[%clk 0:03:01]}  Bxf6 {[%clk 0:03:04]} 11. c3 {[%clk 0:03:01]}  O-O {[%clk 0:03:03]} 12. Nc2 {[%clk 0:03:02]}  Rb8 {[%clk 0:03:03]} 13. a4 {[%clk 0:03:02]}  bxa4 {[%clk 0:03:02]} 14. Ncb4 {[%clk 0:03:02]}  Nxb4 {[%clk 0:02:52]} 15. Nxb4 {[%clk 0:03:03]}  Bb7 {[%clk 0:02:45]} 16. Qxa4 {[%clk 0:02:48]}  a5 {[%clk 0:02:10]} 17. Qxa5 {[%clk 0:02:47]}  Bxe4 {[%clk 0:02:02]} 18. Qxd8 {[%clk 0:02:24]}  Rfxd8 {[%clk 0:01:59]} 19. f3 {[%clk 0:02:24]}  Bb7 {[%clk 0:01:49]} 20. Ba6 {[%clk 0:02:23]}  Ra8 {[%clk 0:01:25]} 21. O-O {[%clk 0:02:22]}  Bxa6 {[%clk 0:01:23]} 22. Rxa6 {[%clk 0:02:22]}  Rxa6 {[%clk 0:01:18]} 23. Nxa6 {[%clk 0:02:23]}  Ra8 {[%clk 0:01:19]} 24. Nb4 {[%clk 0:02:23]}  Bd8 {[%clk 0:01:18]} 25. Rd1 {[%clk 0:02:20]}  Bb6+ {[%clk 0:01:17]} 26. Kf1 {[%clk 0:02:20]}  Bc5 {[%clk 0:01:16]} 27. Nd3 {[%clk 0:02:17]}  Kf8 {[%clk 0:01:07]} 28. Nxc5 {[%clk 0:02:13]}  dxc5 {[%clk 0:01:07]} 29. Rd5 {[%clk 0:02:11]}  Ra2 {[%clk 0:00:54]} 30. Rxc5 {[%clk 0:01:35]}  Rxb2 {[%clk 0:00:54]} 31. Rxe5 {[%clk 0:01:36]}  Rc2 {[%clk 0:00:53]} 32. Re3 {[%clk 0:01:34]}  h5 {[%clk 0:00:45]} 33. h4 {[%clk 0:01:21]}  f6 {[%clk 0:00:42]} 34. Kg1 {[%clk 0:01:20]}  Kf7 {[%clk 0:00:40]} 35. Kh2 {[%clk 0:01:20]}  g5 {[%clk 0:00:40]} 36. hxg5 {[%clk 0:01:10]}  fxg5 {[%clk 0:00:40]} 37. Kh3 {[%clk 0:01:10]}  Kf6 {[%clk 0:00:35]} 38. Rd3 {[%clk 0:01:01]}  Kf5 {[%clk 0:00:34]} 39. Rd5+ {[%clk 0:00:52]}  Kf6 {[%clk 0:00:34]} 40. Rc5 {[%clk 0:00:51]}  Kg6 {[%clk 0:00:30]} 41. Rc6+ {[%clk 0:00:40]}  Kg7 {[%clk 0:00:27]} 42. c4 {[%clk 0:00:37]}  Rc3 {[%clk 0:00:20]} 43. Kg3 {[%clk 0:00:35]}  g4 {[%clk 0:00:17]} 44. c5 {[%clk 0:00:13]}  gxf3 {[%clk 0:00:17]} 45. gxf3 {[%clk 0:00:14]}  h4+ {[%clk 0:00:17]} 46. Kxh4 {[%clk 0:00:14]}  Rxf3 {[%clk 0:00:17]} 47. Kg4 {[%clk 0:00:15]}  Rf1 {[%clk 0:00:16]} 48. Rc8 {[%clk 0:00:07]}  Kf7 {[%clk 0:00:16]} 49. c6 {[%clk 0:00:07]}  Rc1 {[%clk 0:00:13]} 50. Kf5 {[%clk 0:00:07]}  Ke7 {[%clk 0:00:12]} 51. Ke5 {[%clk 0:00:08]}  Rc5+ {[%clk 0:00:11]} 52. Kd4 {[%clk 0:00:08]}  Kd6 {[%clk 0:00:10]} 53. Rd8+ {[%clk 0:00:08]}  Ke7 {[%clk 0:00:00]} 54. Kxc5 {[%clk 0:00:08]} 1-0


[Site "https://www.chess.com"]

[Event "Titled Tuesday Blitz May 9 Early 2023"]
[White "Shubenkova, Veronika"]
[Black "Turzo, Attila"]
[WhiteFideId "44124040"]
[BlackFideId "704954"]
[WhiteElo "2060"]
[BlackElo "2478"]
[Result "0-1"]
[Round "05"]
[TimeControl "180+2"]
[Date "2023.05.09"]
[WhiteClock "0:00:05"]
[BlackClock "0:00:14"]

1. e4 {[%clk 0:03:00]}  c5 {[%clk 0:02:57]} 2. Nc3 {[%clk 0:02:59]}  g6 {[%clk 0:02:55]} 3. g3 {[%clk 0:02:59]}  Bg7 {[%clk 0:02:54]} 4. Bg2 {[%clk 0:03:00]}  Nc6 {[%clk 0:02:54]} 5. d3 {[%clk 0:03:01]}  d6 {[%clk 0:02:53]} 6. f4 {[%clk 0:03:02]}  Nf6 {[%clk 0:02:52]} 7. Nf3 {[%clk 0:03:03]}  Bg4 {[%clk 0:02:52]} 8. O-O {[%clk 0:03:03]}  Nd4 {[%clk 0:02:52]} 9. Rb1 {[%clk 0:03:03]}  O-O {[%clk 0:02:50]} 10. Ne2 {[%clk 0:03:02]}  Nxf3+ {[%clk 0:02:48]} 11. Bxf3 {[%clk 0:03:03]}  Bxf3 {[%clk 0:02:49]} 12. Rxf3 {[%clk 0:03:03]}  d5 {[%clk 0:02:47]} 13. e5 {[%clk 0:03:03]}  Ne8 {[%clk 0:02:45]} 14. Be3 {[%clk 0:03:03]}  d4 {[%clk 0:02:38]} 15. Bd2 {[%clk 0:03:02]}  f6 {[%clk 0:02:39]} 16. e6 {[%clk 0:02:45]}  Qd5 {[%clk 0:02:38]} 17. Rf2 {[%clk 0:02:38]}  f5 {[%clk 0:02:33]} 18. c3 {[%clk 0:02:37]}  Qxa2 {[%clk 0:02:24]} 19. cxd4 {[%clk 0:02:36]}  cxd4 {[%clk 0:02:24]} 20. Bb4 {[%clk 0:02:19]}  Qxe6 {[%clk 0:02:20]} 21. Qd2 {[%clk 0:02:18]}  Nd6 {[%clk 0:02:18]} 22. Re1 {[%clk 0:02:17]}  Qd5 {[%clk 0:02:06]} 23. Nc1 {[%clk 0:02:16]}  Rfe8 {[%clk 0:02:02]} 24. Rfe2 {[%clk 0:02:15]}  e5 {[%clk 0:02:03]} 25. Bxd6 {[%clk 0:02:10]}  Qxd6 {[%clk 0:02:01]} 26. fxe5 {[%clk 0:02:10]}  Rxe5 {[%clk 0:02:00]} 27. Rxe5 {[%clk 0:02:09]}  Bxe5 {[%clk 0:02:00]} 28. Qa5 {[%clk 0:02:09]}  Bf6 {[%clk 0:01:43]} 29. Qb5 {[%clk 0:02:07]}  Qc6 {[%clk 0:01:34]} 30. Qb3+ {[%clk 0:02:06]}  Kg7 {[%clk 0:01:34]} 31. Na2 {[%clk 0:01:59]}  Bg5 {[%clk 0:01:27]} 32. Nb4 {[%clk 0:01:48]}  Be3+ {[%clk 0:01:18]} 33. Rxe3 {[%clk 0:01:48]}  Qc1+ {[%clk 0:01:18]} 34. Kg2 {[%clk 0:01:48]}  Qxe3 {[%clk 0:01:15]} 35. Nd5 {[%clk 0:01:48]}  Qe2+ {[%clk 0:01:07]} 36. Kg1 {[%clk 0:01:43]}  b6 {[%clk 0:00:58]} 37. Nf4 {[%clk 0:01:39]}  Qe3+ {[%clk 0:00:55]} 38. Kg2 {[%clk 0:01:39]}  Re8 {[%clk 0:00:55]} 39. Qd5 {[%clk 0:01:32]}  Qe5 {[%clk 0:00:46]} 40. Qd7+ {[%clk 0:01:28]}  Re7 {[%clk 0:00:47]} 41. Qd8 {[%clk 0:01:24]}  g5 {[%clk 0:00:36]} 42. Nh3 {[%clk 0:00:47]}  h6 {[%clk 0:00:30]} 43. Nf2 {[%clk 0:00:46]}  Rf7 {[%clk 0:00:19]} 44. h4 {[%clk 0:00:41]}  gxh4 {[%clk 0:00:18]} 45. Qxh4 {[%clk 0:00:41]}  f4 {[%clk 0:00:17]} 46. Ne4 {[%clk 0:00:34]}  fxg3 {[%clk 0:00:17]} 47. Qg4+ {[%clk 0:00:33]}  Kh7 {[%clk 0:00:16]} 48. Qh4 {[%clk 0:00:15]}  Qf4 {[%clk 0:00:15]} 49. Qh5 {[%clk 0:00:09]}  Qf1+ {[%clk 0:00:15]} 50. Kxg3 {[%clk 0:00:09]}  Rg7+ {[%clk 0:00:15]} 51. Ng5+ {[%clk 0:00:05]}  Rxg5+ {[%clk 0:00:14]} 0-1


[Site "https://www.chess.com"]

[Event "Titled Tuesday Blitz May 9 Early 2023"]
[White "Mohammed, Zozek Salah Mohammed"]
[Black "Bochnicka, Vladimir"]
[WhiteFideId "4803361"]
[BlackFideId "14943450"]
[WhiteElo "2211"]
[BlackElo "2094"]
[Result "1-0"]
[Round "05"]
[TimeControl "180+2"]
[Date "2023.05.09"]
[WhiteClock "0:00:55"]
[BlackClock "0:00:11"]

1. d4 {[%clk 0:03:00]}  Nf6 {[%clk 0:02:56]} 2. Nf3 {[%clk 0:02:59]}  g6 {[%clk 0:02:54]} 3. g3 {[%clk 0:02:59]}  Bg7 {[%clk 0:02:55]} 4. Bg2 {[%clk 0:03:00]}  O-O {[%clk 0:02:55]} 5. O-O {[%clk 0:03:01]}  d6 {[%clk 0:02:55]} 6. c4 {[%clk 0:03:00]}  Nc6 {[%clk 0:02:56]} 7. b3 {[%clk 0:02:59]}  e5 {[%clk 0:02:51]} 8. dxe5 {[%clk 0:02:58]}  dxe5 {[%clk 0:02:50]} 9. Ba3 {[%clk 0:02:55]}  Re8 {[%clk 0:02:47]} 10. Qxd8 {[%clk 0:02:50]}  Rxd8 {[%clk 0:02:48]} 11. Nc3 {[%clk 0:02:50]}  Bf5 {[%clk 0:02:40]} 12. Rad1 {[%clk 0:02:47]}  Ne4 {[%clk 0:02:33]} 13. Nd5 {[%clk 0:02:44]}  Rd7 {[%clk 0:02:04]} 14. Nh4 {[%clk 0:02:39]}  Rad8 {[%clk 0:02:03]} 15. Nxf5 {[%clk 0:02:38]}  gxf5 {[%clk 0:02:03]} 16. Bh3 {[%clk 0:02:35]}  Nd4 {[%clk 0:01:52]} 17. e3 {[%clk 0:02:17]}  Ne2+ {[%clk 0:01:44]} 18. Kg2 {[%clk 0:02:16]}  c6 {[%clk 0:01:43]} 19. Ne7+ {[%clk 0:02:05]}  Kh8 {[%clk 0:01:44]} 20. Rxd7 {[%clk 0:01:59]}  Rxd7 {[%clk 0:01:45]} 21. Bxf5 {[%clk 0:01:59]}  Rd2 {[%clk 0:01:28]} 22. Bxe4 {[%clk 0:01:58]}  Rxa2 {[%clk 0:01:28]} 23. Bc5 {[%clk 0:01:58]}  Nc3 {[%clk 0:01:24]} 24. Bf5 {[%clk 0:01:48]}  a5 {[%clk 0:01:18]} 25. Bc8 {[%clk 0:01:36]}  b5 {[%clk 0:01:03]} 26. Nxc6 {[%clk 0:01:35]}  bxc4 {[%clk 0:00:58]} 27. bxc4 {[%clk 0:01:36]}  a4 {[%clk 0:00:58]} 28. Bd6 {[%clk 0:01:22]}  a3 {[%clk 0:00:46]} 29. Nxe5 {[%clk 0:01:21]}  Kg8 {[%clk 0:00:38]} 30. Nf3 {[%clk 0:01:15]}  Ne4 {[%clk 0:00:30]} 31. Bb4 {[%clk 0:01:11]}  Bf8 {[%clk 0:00:26]} 32. Bxf8 {[%clk 0:01:10]}  Kxf8 {[%clk 0:00:27]} 33. Bf5 {[%clk 0:01:10]}  Nc3 {[%clk 0:00:25]} 34. Bxh7 {[%clk 0:01:08]}  Rb2 {[%clk 0:00:25]} 35. Ra1 {[%clk 0:01:07]}  a2 {[%clk 0:00:25]} 36. Nd4 {[%clk 0:01:06]}  Ke7 {[%clk 0:00:17]} 37. Nb5 {[%clk 0:01:03]}  Rb1 {[%clk 0:00:12]} 38. Bxb1 {[%clk 0:00:57]}  axb1=Q {[%clk 0:00:11]} 39. Rxb1 {[%clk 0:00:57]}  Nxb1 {[%clk 0:00:11]} 40. c5 {[%clk 0:00:56]}  Nc3 {[%clk 0:00:11]} 41. Nxc3 {[%clk 0:00:55]} 1-0


[Site "https://www.chess.com"]

[Event "Titled Tuesday Blitz May 9 Early 2023"]
[White "Ciolacu, Alessia-Mihaela"]
[Black "Hoffmann, Asa"]
[WhiteFideId "1252640"]
[BlackFideId "2001470"]
[WhiteElo "1937"]
[BlackElo "2117"]
[Result "0-1"]
[Round "05"]
[TimeControl "180+2"]
[Date "2023.05.09"]
[WhiteClock "0:00:16"]
[BlackClock "0:00:30"]

1. c4 {[%clk 0:03:00]}  Nf6 {[%clk 0:02:59]} 2. d4 {[%clk 0:02:57]}  c5 {[%clk 0:02:58]} 3. d5 {[%clk 0:02:53]}  e5 {[%clk 0:02:58]} 4. Nc3 {[%clk 0:02:52]}  d6 {[%clk 0:02:58]} 5. Qc2 {[%clk 0:02:50]}  Be7 {[%clk 0:02:57]} 6. g3 {[%clk 0:02:49]}  O-O {[%clk 0:02:57]} 7. Bg2 {[%clk 0:02:48]}  Ne8 {[%clk 0:02:56]} 8. e4 {[%clk 0:02:48]}  f5 {[%clk 0:02:56]} 9. Nge2 {[%clk 0:02:48]}  Bg5 {[%clk 0:02:54]} 10. f4 {[%clk 0:02:40]}  exf4 {[%clk 0:02:43]} 11. Nxf4 {[%clk 0:02:25]}  Qf6 {[%clk 0:02:30]} 12. O-O {[%clk 0:02:23]}  Na6 {[%clk 0:02:24]} 13. Kh1 {[%clk 0:02:17]}  Bd7 {[%clk 0:02:17]} 14. a3 {[%clk 0:02:14]}  Nac7 {[%clk 0:02:11]} 15. Nh5 {[%clk 0:02:07]}  Qh6 {[%clk 0:02:11]} 16. Bxg5 {[%clk 0:02:06]}  Qxg5 {[%clk 0:02:08]} 17. Nf4 {[%clk 0:02:05]}  Nf6 {[%clk 0:02:07]} 18. Nh3 {[%clk 0:01:56]}  Qh5 {[%clk 0:02:02]} 19. Nf4 {[%clk 0:01:49]}  Qh6 {[%clk 0:01:58]} 20. exf5 {[%clk 0:01:45]}  Ng4 {[%clk 0:01:58]} 21. Be4 {[%clk 0:01:43]}  Ne3 {[%clk 0:01:53]} 22. Qd3 {[%clk 0:01:38]}  Nxf1 {[%clk 0:01:53]} 23. Rxf1 {[%clk 0:01:38]}  Rae8 {[%clk 0:01:52]} 24. Ne6 {[%clk 0:01:36]}  Nxe6 {[%clk 0:01:46]} 25. dxe6 {[%clk 0:01:31]}  Bc6 {[%clk 0:01:46]} 26. Nd5 {[%clk 0:01:27]}  Bxd5 {[%clk 0:01:43]} 27. Qxd5 {[%clk 0:01:16]}  Qe3 {[%clk 0:01:36]} 28. Kg2 {[%clk 0:01:05]}  Re7 {[%clk 0:01:28]} 29. Bb1 {[%clk 0:00:55]}  Qe5 {[%clk 0:01:21]} 30. Qxe5 {[%clk 0:00:50]}  dxe5 {[%clk 0:01:21]} 31. Be4 {[%clk 0:00:50]}  Rd8 {[%clk 0:01:16]} 32. Bd5 {[%clk 0:00:50]}  b5 {[%clk 0:01:16]} 33. b3 {[%clk 0:00:48]}  bxc4 {[%clk 0:01:15]} 34. bxc4 {[%clk 0:00:46]}  Rb8 {[%clk 0:01:15]} 35. Re1 {[%clk 0:00:46]}  Rb3 {[%clk 0:01:10]} 36. a4 {[%clk 0:00:40]}  Rb4 {[%clk 0:01:06]} 37. Bc6 {[%clk 0:00:40]}  Rc7 {[%clk 0:01:05]} 38. Rd1 {[%clk 0:00:35]}  Kf8 {[%clk 0:01:03]} 39. Bb5 {[%clk 0:00:31]}  Ke7 {[%clk 0:01:00]} 40. Rd5 {[%clk 0:00:30]}  a6 {[%clk 0:00:59]} 41. Bxa6 {[%clk 0:00:29]}  Rxa4 {[%clk 0:00:59]} 42. Bb5 {[%clk 0:00:28]}  Ra2+ {[%clk 0:00:58]} 43. Kh3 {[%clk 0:00:29]}  Re2 {[%clk 0:00:57]} 44. Bd7 {[%clk 0:00:26]}  e4 {[%clk 0:00:57]} 45. g4 {[%clk 0:00:25]}  h6 {[%clk 0:00:56]} 46. Kg3 {[%clk 0:00:24]}  e3 {[%clk 0:00:55]} 47. Kf3 {[%clk 0:00:24]}  Re1 {[%clk 0:00:55]} 48. Bb5 {[%clk 0:00:21]}  Ra7 {[%clk 0:00:53]} 49. h4 {[%clk 0:00:20]}  Ra3 {[%clk 0:00:51]} 50. g5 {[%clk 0:00:20]}  e2+ {[%clk 0:00:51]} 51. Kf2 {[%clk 0:00:20]}  Rh1 {[%clk 0:00:42]} 52. Rd7+ {[%clk 0:00:19]}  Kf8 {[%clk 0:00:33]} 53. Kxe2 {[%clk 0:00:19]}  Rh2+ {[%clk 0:00:32]} 54. Ke1 {[%clk 0:00:16]}  Ra1+ {[%clk 0:00:32]} 55. Rd1 {[%clk 0:00:16]}  Rh1+ {[%clk 0:00:32]} 56. Ke2 {[%clk 0:00:16]}  Raxd1 {[%clk 0:00:32]} 57. f6 {[%clk 0:00:17]}  Rde1+ {[%clk 0:00:31]} 58. Kd2 {[%clk 0:00:16]}  Rxe6 {[%clk 0:00:30]} 0-1


[Site "https://www.chess.com"]

[Event "Titled Tuesday Blitz May 9 Early 2023"]
[White "Manukian, Artak"]
[Black "Zampronha, Wladimir Camilo"]
[WhiteFideId "13301373"]
[BlackFideId "2103087"]
[WhiteElo "2130"]
[BlackElo "2176"]
[Result "0-1"]
[Round "05"]
[TimeControl "180+2"]
[Date "2023.05.09"]
[WhiteClock "0:00:00"]
[BlackClock "0:00:25"]

1. e4 {[%clk 0:03:00]}  c5 {[%clk 0:02:59]} 2. Nf3 {[%clk 0:03:00]}  e6 {[%clk 0:02:59]} 3. c3 {[%clk 0:03:00]}  Nf6 {[%clk 0:02:58]} 4. e5 {[%clk 0:03:00]}  Nd5 {[%clk 0:02:58]} 5. d4 {[%clk 0:03:01]}  cxd4 {[%clk 0:02:58]} 6. cxd4 {[%clk 0:03:02]}  b6 {[%clk 0:02:58]} 7. Nc3 {[%clk 0:03:02]}  Bb7 {[%clk 0:02:58]} 8. Bd3 {[%clk 0:03:02]}  Nxc3 {[%clk 0:02:54]} 9. bxc3 {[%clk 0:03:01]}  Qc7 {[%clk 0:02:55]} 10. O-O {[%clk 0:02:59]}  d6 {[%clk 0:02:56]} 11. Bf4 {[%clk 0:02:58]}  Nd7 {[%clk 0:02:55]} 12. Re1 {[%clk 0:02:48]}  Be7 {[%clk 0:02:55]} 13. Rc1 {[%clk 0:02:42]}  O-O {[%clk 0:02:52]} 14. exd6 {[%clk 0:02:41]}  Bxd6 {[%clk 0:02:49]} 15. Bxd6 {[%clk 0:02:42]}  Qxd6 {[%clk 0:02:49]} 16. Ne5 {[%clk 0:02:42]}  Nxe5 {[%clk 0:02:47]} 17. dxe5 {[%clk 0:02:42]}  Qc7 {[%clk 0:02:35]} 18. Qh5 {[%clk 0:02:39]}  g6 {[%clk 0:02:32]} 19. Qh6 {[%clk 0:02:35]}  Rfd8 {[%clk 0:02:30]} 20. Re3 {[%clk 0:02:32]}  Qc6 {[%clk 0:02:15]} 21. Bf1 {[%clk 0:02:27]}  Qc5 {[%clk 0:02:00]} 22. Rce1 {[%clk 0:01:55]}  Rd2 {[%clk 0:01:56]} 23. Qf4 {[%clk 0:01:37]}  Rad8 {[%clk 0:01:51]} 24. Rf3 {[%clk 0:01:28]}  Bxf3 {[%clk 0:01:48]} 25. Qxf3 {[%clk 0:01:29]}  Rxa2 {[%clk 0:01:40]} 26. h4 {[%clk 0:01:28]}  Rdd2 {[%clk 0:01:30]} 27. h5 {[%clk 0:01:05]}  Qxf2+ {[%clk 0:01:28]} 28. Qxf2 {[%clk 0:01:02]}  Rxf2 {[%clk 0:01:29]} 29. h6 {[%clk 0:01:02]}  Kf8 {[%clk 0:01:21]} 30. Re4 {[%clk 0:00:57]}  Ke7 {[%clk 0:01:16]} 31. Rc4 {[%clk 0:00:50]}  Rfd2 {[%clk 0:01:15]} 32. Rc8 {[%clk 0:00:46]}  Ra1 {[%clk 0:01:14]} 33. Rh8 {[%clk 0:00:37]}  Rdd1 {[%clk 0:01:10]} 34. Kf2 {[%clk 0:00:36]}  Rxf1+ {[%clk 0:01:10]} 35. Kg3 {[%clk 0:00:36]}  Rac1 {[%clk 0:01:04]} 36. Rxh7 {[%clk 0:00:35]}  Rxc3+ {[%clk 0:01:04]} 37. Kh2 {[%clk 0:00:34]}  Rcc1 {[%clk 0:01:02]} 38. Rh8 {[%clk 0:00:33]}  Rh1+ {[%clk 0:01:01]} 39. Kg3 {[%clk 0:00:33]}  f6 {[%clk 0:00:57]} 40. h7 {[%clk 0:00:29]}  fxe5 {[%clk 0:00:56]} 41. Ra8 {[%clk 0:00:29]}  Kf6 {[%clk 0:00:41]} 42. h8=Q+ {[%clk 0:00:27]}  Rxh8 {[%clk 0:00:42]} 43. Rxh8 {[%clk 0:00:27]}  b5 {[%clk 0:00:38]} 44. Rb8 {[%clk 0:00:24]}  Rb1 {[%clk 0:00:36]} 45. Kg4 {[%clk 0:00:18]}  a5 {[%clk 0:00:35]} 46. Rf8+ {[%clk 0:00:18]}  Ke7 {[%clk 0:00:34]} 47. Ra8 {[%clk 0:00:17]}  a4 {[%clk 0:00:35]} 48. Kg5 {[%clk 0:00:17]}  Kd6 {[%clk 0:00:33]} 49. g4 {[%clk 0:00:17]}  Kc5 {[%clk 0:00:33]} 50. Kxg6 {[%clk 0:00:17]}  Kb4 {[%clk 0:00:33]} 51. Kf6 {[%clk 0:00:16]}  a3 {[%clk 0:00:33]} 52. g5 {[%clk 0:00:15]}  Kb3 {[%clk 0:00:33]} 53. g6 {[%clk 0:00:16]}  Rg1 {[%clk 0:00:33]} 54. g7 {[%clk 0:00:12]}  a2 {[%clk 0:00:33]} 55. Ra5 {[%clk 0:00:12]}  b4 {[%clk 0:00:31]} 56. Kf7 {[%clk 0:00:07]}  e4 {[%clk 0:00:27]} 57. Ra6 {[%clk 0:00:04]}  Rxg7+ {[%clk 0:00:26]} 58. Kxg7 {[%clk 0:00:04]}  e3 {[%clk 0:00:26]} 59. Rxe6 {[%clk 0:00:04]}  a1=Q+ {[%clk 0:00:25]} 60. Kg6 {[%clk 0:00:04]}  Qd4 {[%clk 0:00:25]} 61. Kf5 {[%clk 0:00:03]}  Kc3 {[%clk 0:00:26]} 62. Re4 {[%clk 0:00:00]}  Qxe4+ {[%clk 0:00:25]} 0-1


[Site "https://www.chess.com"]

[Event "Titled Tuesday Blitz May 9 Early 2023"]
[White "Abdilkhair, Abilmansur"]
[Black "Rosenberg, Evan S"]
[WhiteFideId "13716417"]
[BlackFideId "2019299"]
[WhiteElo "2215"]
[BlackElo "2256"]
[Result "1-0"]
[Round "05"]
[TimeControl "180+2"]
[Date "2023.05.09"]
[WhiteClock "0:00:56"]
[BlackClock "0:00:00"]

1. d4 {[%clk 0:03:00]}  d5 {[%clk 0:02:59]} 2. c4 {[%clk 0:03:01]}  e6 {[%clk 0:02:59]} 3. Nf3 {[%clk 0:03:01]}  c5 {[%clk 0:02:57]} 4. Nc3 {[%clk 0:03:01]}  cxd4 {[%clk 0:02:57]} 5. Nxd4 {[%clk 0:03:01]}  e5 {[%clk 0:02:58]} 6. Nb3 {[%clk 0:03:00]}  d4 {[%clk 0:02:53]} 7. Ne4 {[%clk 0:02:56]}  f5 {[%clk 0:02:41]} 8. Ng3 {[%clk 0:02:55]}  a5 {[%clk 0:02:38]} 9. e3 {[%clk 0:02:43]}  a4 {[%clk 0:02:28]} 10. Nd2 {[%clk 0:02:43]}  dxe3 {[%clk 0:02:27]} 11. fxe3 {[%clk 0:02:44]}  Bc5 {[%clk 0:02:06]} 12. Nf3 {[%clk 0:02:41]}  Qxd1+ {[%clk 0:02:06]} 13. Kxd1 {[%clk 0:02:42]}  Nc6 {[%clk 0:02:06]} 14. a3 {[%clk 0:02:40]}  Nf6 {[%clk 0:01:51]} 15. Kc2 {[%clk 0:02:39]}  O-O {[%clk 0:01:50]} 16. Bd2 {[%clk 0:02:38]}  h6 {[%clk 0:01:40]} 17. Be2 {[%clk 0:02:35]}  f4 {[%clk 0:01:32]} 18. exf4 {[%clk 0:02:31]}  exf4 {[%clk 0:01:32]} 19. Bxf4 {[%clk 0:02:28]}  Bg4 {[%clk 0:01:16]} 20. Rad1 {[%clk 0:02:21]}  Rae8 {[%clk 0:01:07]} 21. Bd6 {[%clk 0:02:10]}  Bxd6 {[%clk 0:01:06]} 22. Rxd6 {[%clk 0:02:11]}  Ne4 {[%clk 0:00:55]} 23. Nxe4 {[%clk 0:02:08]}  Rxe4 {[%clk 0:00:56]} 24. Bd3 {[%clk 0:02:08]}  Re3 {[%clk 0:00:48]} 25. Nd4 {[%clk 0:01:59]}  Rf2+ {[%clk 0:00:45]} 26. Kc3 {[%clk 0:01:58]}  Ne5 {[%clk 0:00:28]} 27. Rd8+ {[%clk 0:01:55]}  Kf7 {[%clk 0:00:28]} 28. Nc2 {[%clk 0:01:49]}  Rxc2+ {[%clk 0:00:19]} 29. Kxc2 {[%clk 0:01:48]}  Nxd3 {[%clk 0:00:20]} 30. Rf1+ {[%clk 0:01:41]}  Kg6 {[%clk 0:00:15]} 31. Rd6+ {[%clk 0:01:33]}  Kh7 {[%clk 0:00:11]} 32. Rxd3 {[%clk 0:01:32]}  Re2+ {[%clk 0:00:10]} 33. Rd2 {[%clk 0:01:31]}  Re4 {[%clk 0:00:09]} 34. h3 {[%clk 0:01:30]}  Be6 {[%clk 0:00:07]} 35. c5 {[%clk 0:01:15]}  Rc4+ {[%clk 0:00:07]} 36. Kb1 {[%clk 0:01:16]}  Rxc5 {[%clk 0:00:07]} 37. Rd4 {[%clk 0:01:14]}  Bb3 {[%clk 0:00:07]} 38. Rb4 {[%clk 0:01:11]}  b5 {[%clk 0:00:06]} 39. Rd4 {[%clk 0:01:08]}  Rc2 {[%clk 0:00:05]} 40. Rg4 {[%clk 0:01:06]}  h5 {[%clk 0:00:05]} 41. Rg5 {[%clk 0:01:05]}  g6 {[%clk 0:00:04]} 42. h4 {[%clk 0:01:01]}  b4 {[%clk 0:00:02]} 43. axb4 {[%clk 0:01:01]}  Re2 {[%clk 0:00:02]} 44. b5 {[%clk 0:01:00]}  Bc2+ {[%clk 0:00:02]} 45. Ka2 {[%clk 0:01:01]}  Bd3 {[%clk 0:00:02]} 46. b6 {[%clk 0:01:00]}  Re6 {[%clk 0:00:02]} 47. Rf7+ {[%clk 0:00:58]}  Kg8 {[%clk 0:00:02]} 48. Rb7 {[%clk 0:00:58]}  Bc4+ {[%clk 0:00:01]} 49. Ka3 {[%clk 0:00:58]}  Bb3 {[%clk 0:00:02]} 50. Rc5 {[%clk 0:00:56]}  Re1 {[%clk 0:00:00]} 51. Rc8+ {[%clk 0:00:56]} 1-0


[Site "https://www.chess.com"]

[Event "Titled Tuesday Blitz May 9 Early 2023"]
[White "Fan_Of_Chucky"]
[Black "Pourkashiyan, Atousa"]
[BlackFideId "12502014"]
[WhiteElo "2407"]
[BlackElo "2228"]
[Result "0-1"]
[Round "05"]
[TimeControl "180+2"]
[Date "2023.05.09"]
[WhiteClock "0:00:00"]
[BlackClock "0:01:33"]

1. d4 {[%clk 0:03:00]}  Nf6 {[%clk 0:02:52]} 2. Bg5 {[%clk 0:02:59]}  e6 {[%clk 0:02:52]} 3. e4 {[%clk 0:02:59]}  h6 {[%clk 0:02:52]} 4. Bxf6 {[%clk 0:03:00]}  Qxf6 {[%clk 0:02:52]} 5. c3 {[%clk 0:02:58]}  d5 {[%clk 0:02:50]} 6. e5 {[%clk 0:02:47]}  Qd8 {[%clk 0:02:50]} 7. Nf3 {[%clk 0:02:36]}  c5 {[%clk 0:02:50]} 8. Be2 {[%clk 0:02:33]}  Qb6 {[%clk 0:02:48]} 9. Qb3 {[%clk 0:02:28]}  c4 {[%clk 0:02:47]} 10. Qc2 {[%clk 0:02:04]}  Bd7 {[%clk 0:02:46]} 11. b3 {[%clk 0:01:56]}  cxb3 {[%clk 0:02:41]} 12. axb3 {[%clk 0:01:54]}  Nc6 {[%clk 0:02:41]} 13. Nbd2 {[%clk 0:01:50]}  Rc8 {[%clk 0:02:41]} 14. Qd3 {[%clk 0:01:45]}  Na5 {[%clk 0:02:38]} 15. Rb1 {[%clk 0:01:37]}  a6 {[%clk 0:02:38]} 16. O-O {[%clk 0:01:32]}  Bb5 {[%clk 0:02:37]} 17. c4 {[%clk 0:01:32]}  Bc6 {[%clk 0:02:34]} 18. Rfc1 {[%clk 0:00:51]}  Bb4 {[%clk 0:02:13]} 19. cxd5 {[%clk 0:00:43]}  exd5 {[%clk 0:02:13]} 20. Qf5 {[%clk 0:00:42]}  O-O {[%clk 0:02:09]} 21. Bd3 {[%clk 0:00:37]}  g6 {[%clk 0:02:08]} 22. Qf6 {[%clk 0:00:25]}  Bxd2 {[%clk 0:01:59]} 23. Nxd2 {[%clk 0:00:05]}  Qxd4 {[%clk 0:01:59]} 24. Bxg6 {[%clk 0:00:04]}  Qxd2 {[%clk 0:01:54]} 25. f4 {[%clk 0:00:04]}  d4 {[%clk 0:01:40]} 26. Rc2 {[%clk 0:00:01]}  Qe3+ {[%clk 0:01:36]} 27. Rf2 {[%clk 0:00:00]}  Be4 {[%clk 0:01:33]} 0-1


[Site "https://www.chess.com"]